Cogmind - Beta 10.2 @@@ ROGUE MODE // 2021.10.23 @ 10:16:49 Player: Wakanaka Result: Destroyed by YI-UF0 with YI-UF0's Doublenader Performance ------------- Evolutions (0) 0 Regions Visited (2) 400 Robots Destroyed (13) 65 Value Destroyed (141) 141 Prototype IDs (0) 0 Alien Tech Used (0) 0 Bonus (0) 0 TOTAL SCORE: 606 Bonus ------- None Cogmind --------- Core Integrity 0/250 Matter 121/300 Energy 100/100 System Corruption 5% Temperature Cool (0) Movement Core (150) Ox2 Location -10/Mines Parts ------- > --- POWER (1) -------- (None) > --- PROPULSION (2) --- (None) > --- UTILITY (2) ------ Medium Storage Unit > --- WEAPON (2) ------- (None) > --- INVENTORY (8) ---- Improved Ion Engine Structural Scanner Seismic Analyzer Targeting Computer ECM Suite Power Shielding Utility Shielding Light Cannon Peak State ------------ > --- POWER ------------ Improved Ion Engine > --- PROPULSION ------- Light Treads Light Treads > --- UTILITY ---------- Medium Storage Unit Improved Terrain Scanner > --- WEAPON ----------- Light Cannon Light Cannon > --- INVENTORY -------- Improved Ion Engine Wheel Wheel High-capacity Matter Pod Structural Scanner Seismic Analyzer EM Shotgun EM Shotgun [Rating: 10] Favorites ----------- Power Improved Ion Engine Engine Improved Ion Engine Propulsion Light Treads Treads Light Treads Wheel Wheel Utility Medium Storage Unit Device Improved Terrain Scanner Storage Medium Storage Unit Protection Power Shielding Weapon EM Shotgun Energy Gun EM Shotgun Ballistic Gun Assault Rifle Ballistic Cannon Light Cannon Build | -11 -10 -10 ------- Run | Scr Mat Min Slots Evolved . | . . . Power . | . . . Propulsion . | . . . Utility . | . . . Weapon . | . . . Parts Attached 22 | 7 12 3 Power 2 | 1 1 . Engine 2 | 1 1 . Core . | . . . Reactor . | . . . Propulsion 6 | 2 4 . Treads 4 | 2 2 . Leg . | . . . Wheel 2 | . 2 . Hover . | . . . Flight . | . . . Utility 5 | 2 2 1 Device 1 | 1 . . Storage 2 | 1 1 . Processor . | . . . Hackware . | . . . Protection 2 | . 1 1 Artifact . | . . . Weapon 9 | 2 5 2 Energy Gun 3 | . 2 1 Energy Cannon . | . . . Ballistic Gun 3 | 2 1 . Ballistic Cannon 3 | . 2 1 Launcher . | . . . Special Weapon . | . . . Impact Weapon . | . . . Slashing Weapon . | . . . Piercing Weapon . | . . . Special Melee Weapon . | . . . Unidentified Prototypes . | . . . Parts Lost 6 | . 1 5 Power 1 | . . 1 Propulsion 2 | . 1 1 Utility 1 | . . 1 Weapon 2 | . . 2 Highest Loss Streak 5 | . 1 5 Average Slot Usage (%) 97 | . 98 95 Engine 13 | . 14 13 Treads 23 | . 22 26 Wheel 3 | . 4 . Device 5 | . 7 . Storage 14 | . 14 14 Protection 8 | . 6 12 Energy Gun 13 | . 7 25 Ballistic Gun 8 | . 13 . Ballistic Cannon 4 | . 6 . Naked Turns . | . . . Heaviest Build 24 | 14 22 24 Greatest Support 40 | 40 40 40 Greatest Overweight (x) 4 | . 2 4 Average Overweight (x) . | . . . Largest Inventory Capacity 8 | 6 8 8 Average Capacity 7 | 5 7 8 Most Carried 8 | 6 8 8 Average Carried 7 | 3 7 7 Final Capacity 8 | 6 8 8 Final Carried 8 | 5 8 8 Class Distribution -------------------- 100% | Mutant Dominant Class ---------------- Mutant | -10/Materials Mutant | -10/Mines Resources | -11 -10 -10 ----------- Run | Scr Mat Min Matter Collected 483 | 336 147 . Remotely . | . . . Salvage Created 304 | 139 165 . Parts 21 | 9 12 . Haulers Intercepted . | . . . Recyclers Shooed . | . . . Parts Field Recycled . | . . . Retrieved Matter . | . . . Parts Self-Destructed . | . . . Prevented . | . . . Kills | -11 -10 -10 ------- Run | Scr Mat Min Combat Hostiles Destroyed 8 | . 8 . Guns 7 | . 7 . Cannons 1 | . 1 . Classes Destroyed 6 | 3 3 . Worker 1 | 1 . . Tunneler 2 | 2 . . Recycler 1 | 1 . . Watcher 1 | . 1 . Swarmer 7 | . 7 . Grunt 1 | . 1 . Best Kill Streak 3 | 3 3 . Combat Bots Only 3 | . 3 . Max Kills in Single Turn 1 | 1 1 . Gunslinging . | . . . Exploded . | . . . Melee . | . . . Uniques/NPCs Destroyed . | . . . Combat | -11 -10 -10 -------- Run | Scr Mat Min Damage Taken 1119 | . 623 496 Core 259 | . 125 134 Absorbed by Shields . | . . . Core Remaining (%) 100 | 100 . . Volleys Fired 50 | 11 37 2 Largest 2 | 2 2 1 Hottest 90 | 40 90 35 Shots Fired 92 | 22 68 2 Gun 68 | 22 46 . Cannon 24 | . 22 2 Launcher . | . . . Special . | . . . Kinetic 70 | 22 46 2 Thermal . | . . . Explosive . | . . . Electromagnetic 22 | . 22 . Robot Hit Streak 7 | 7 5 3 Robot Miss Streak 7 | 2 7 . Penetration Max . | . . . Secondary Targets 1 | . 1 . Max Gunslinging Chain 1 | . 1 . Shots Hit Robots 47 | 16 29 2 Core Hits 18 | 5 13 . Critical Hits . | . . . Critical Kills . | . . . Critical Parts Destroyed . | . . . Melee Attacks . | . . . Impact . | . . . Slashing . | . . . Piercing . | . . . Sneak Attacks . | . . . Combat Hostiles . | . . . Follow-up Attacks . | . . . Damage Inflicted 627 | 204 385 38 Guns 496 | 204 292 . Cannons 131 | . 93 38 Explosions . | . . . Melee . | . . . Ramming . | . . . Kinetic 497 | 204 255 38 Thermal . | . . . Explosive . | . . . Electromagnetic 130 | . 130 . Impact . | . . . Slashing . | . . . Piercing . | . . . Highest Corruption 5 | . . 5 Average Corruption 5 | . . 5 Corruption Purged . | . . . Effects 1 | . . 1 Parts Rejected 1 | . . 1 Overload Shots . | . . . Overflow Damage . | . . . Projectiles . | . . . Explosions . | . . . Melee . | . . . Knockbacks 1 | . 1 . Impact . | . . . Kinetic 1 | . 1 . Secondary . | . . . Self-Inflicted Damage . | . . . Shots . | . . . Rammed . | . . . Targets Rammed . | . . . Kicked . | . . . Crushed . | . . . Highest Temperature 264 | . 264 4 Average Temperature 72 | . 75 2 Received Heat Transfer 12 | . 12 . Siege Activations . | . . . Robots Corrupted . | . . . Combat Hostiles . | . . . Parts Fried . | . . . Impact Corruptions . | . . . Robots Melted . | . . . Combat Hostiles . | . . . Parts Melted . | . . . Heat Transferred . | . . . Parts Sabotaged . | . . . Parts Stolen . | . . . Parts Stripped . | . . . Power Chain Reactions . | . . . Missiles Intercepted . | . . . Alert | -11 -10 -10 ------- Run | Scr Mat Min Peak Influence 185 | 20 185 19 Initial 19 | . 13 19 Average 52 | 7 77 17 Maximum Alert Level . | . . . Low Security (%) 100 | 100 100 100 Level 1 . | . . . Level 2 . | . . . Level 3 . | . . . Level 4 . | . . . Level 5 . | . . . High Security . | . . . Max Security . | . . . Squads Dispatched . | . . . Investigation . | . . . Extermination . | . . . Reinforcement . | . . . Assault . | . . . Garrison . | . . . Intercept . | . . . Construction Impeded . | . . . Haulers Reinforced . | . . . Stealth | -11 -10 -10 --------- Run | Scr Mat Min Distress Signals . | . . . Communications Jammed . | . . . Distress Signals . | . . . Times Spotted 14 | . 13 1 Peak Tracking Total 4 | . 4 1 Tactical Retreats 2 | . 2 . Traps | -11 -10 -10 ------- Run | Scr Mat Min Traps Triggered . | . . . Indirectly . | . . . Trap Hack Attempts . | . . . Triggered . | . . . Disarmed . | . . . Reprogrammed . | . . . Reused . | . . . Traps Extracted . | . . . Installed . | . . . Triggered . | . . . Machines | -11 -10 -10 ---------- Run | Scr Mat Min Machines Disabled . | . . . Max in Single Turn . | . . . Machines Sabotaged . | . . . Garrisons Compromised . | . . . Overloaded Fab Kills . | . . . Fab Network Shutdowns . | . . . Hacking | -11 -10 -10 --------- Run | Scr Mat Min Machines Accessed 1 | . 1 . Terminals . | . . . Fabricators . | . . . Repair Stations . | . . . Recycling Units 1 | . 1 . Scanalyzers . | . . . Garrison Access . | . . . Total Hacks 3 | . 3 . Successful 2 | . 2 . Failed 1 | . 1 . Catastrophic . | . . . Database Lockouts . | . . . Manual . | . . . Terminals . | . . . Fabricators . | . . . Repair Stations . | . . . Recycling Units 3 | . 3 . Scanalyzers . | . . . Garrison Access . | . . . Terminal Hacks . | . . . Fabricator Hacks . | . . . Repair Station Hacks . | . . . Recycling Unit Hacks 2 | . 2 . Report Inventory 1 | . 1 . Retrieve Components 1 | . 1 . Scanalyzer . | . . . Garrison Access Hacks . | . . . Unauthorized Hacks . | . . . Terminals . | . . . Fabricators . | . . . Repair Stations . | . . . Recycling Units . | . . . Scanalyzers . | . . . Garrison Access . | . . . Data Cores Recovered . | . . . Used . | . . . Hacking Detections 1 | . 1 . Full Trace Events . | . . . Feedback Events . | . . . Feedback Blocked . | . . . Robot Schematics Acquired . | . . . Robots Built . | . . . Matter . | . . . Time . | . . . Total Robot Build Rating . | . . . Part Schematics Acquired . | . . . Parts Built . | . . . Matter . | . . . Time . | . . . Total Part Build Rating . | . . . Parts Repaired . | . . . Time . | . . . Parts Recycled . | . . . Recycled Matter . | . . . Retrieved Matter . | . . . Retrieved Components 2 | . 2 . Parts Scanalyzed . | . . . Part Schematics Acquired . | . . . Parts Damaged . | . . . Bothacking | -11 -10 -10 ------------ Run | Scr Mat Min Used RIF Installer . | . . . Robots Hacked . | . . . Non-combat . | . . . Combat . | . . . Robot Hacks Applied . | . . . Relay Couplers Released . | . . . Robots Rewired . | . . . Allies Hacked . | . . . Hacks Repelled . | . . . Allies | -11 -10 -10 -------- Run | Scr Mat Min Total Allies 3 | . . 3 Largest Group 3 | . . 3 Highest-Rated Group 40 | . . 40 Highest-Rated Ally 16 | . . 16 Total Orders 3 | . . 3 AID 3 | . . 3 Ally Attacks 3 | . . 3 Total Damage 15 | . . 15 Kills . | . . . Allies Corrupted . | . . . Allies Melted . | . . . Intel | -11 -10 -10 ------- Run | Scr Mat Min Robot Analysis Total . | . . . Derelict Logs Recovered . | . . . Drone Launches . | . . . Drone Recoveries . | . . . Exploration | -11 -10 -10 ------------- Run | Scr Mat Min Turns Passed 973 | 116 583 274 Spaces Moved 453 | 42 249 162 Core 8 | 2 . 6 Treads 418 | 40 222 156 Legs . | . . . Wheels 27 | . 27 . Hover . | . . . Flight . | . . . Fastest Speed 50 | 50 90 150 Average Speed 157 | 154 155 160 Slowest Speed 250 | 160 180 250 Overloaded Moves . | . . . Propulsion Burnouts . | . . . Robots Hopped . | . . . Cave-ins Triggered 1 | . . 1 Exploration Rate (%) 23 | 5 32 32 Regions Visited 2 Branch Regions 1 Pre-discovered Areas . | . . . Known Exits Taken . | . . . Unknown Exits Taken 2 | 1 1 . Scrap Searched . | . . . Spaces Dug . | . . . Terrain Destroyed . | . . . Melee . | . . . Projectile . | . . . AOE . | . . . Terrain Rammed . | . . . Walls Destroyed . | . . . Machines Disabled . | . . . Actions | -11 -10 -10 --------- Run | Scr Mat Min Total 621 | 71 378 172 Wait 60 | . 57 3 Move 451 | 41 248 162 Hop . | . . . Pick Up 25 | 12 12 1 Fast Attach 3 | . 3 . Attach 9 | 7 2 . Detach . | . . . Swap 10 | . 7 3 Drop 13 | . 12 1 Fire 50 | 11 37 2 Melee . | . . . Ram . | . . . Kick . | . . . Crush . | . . . Escape Stasis . | . . . Rewire . | . . . Trap . | . . . Miscellaneous . | . . . Route ------- -11/Scrapyard -10/Materials -10/Mines History --------- Turn | Location | Event 18 | -11/Scrapyard | Discovered new exit (range 16) 117 | -11/Scrapyard | Entered Materials 117 | -10/Materials | Discovered new exit (range 16) 312 | -10/Materials | Build established: Mutant 700 | -10/Materials | Entered Mines 742 | -10/Mines | Met a Derelict bent on vengeance 750 | -10/Mines | Assisted by bots powering up and referring to "LRC-V3" 952 | -10/Mines | Core integrity fell below 50% 959 | -10/Mines | Crushed by falling debris 971 | -10/Mines | Core integrity fell below 20% 974 | -10/Mines | Destroyed by YI-UF0 with YI-UF0's Doublenader Last Messages --------------- 00953_ The unstable cave ceiling collapses. 00955_ R-06 Scavenger destroyed. 00955_ YI-UF0: "WHOMP!" 00955_ R-06 Scavenger destroyed. 00955_ K-01 Serf collects debris. 00956_ YI-UF0 mumbles something. 00957_ Trooper 1b destroyed. 00959_ The unstable cave ceiling collapses. 00959_ Crushed by falling debris. 00959_ EM Shotgun destroyed. 00959_ System corrupted by crushing effect (+4). 00959_ EM Shotgun destroyed. 00959_ System corrupted by crushing effect (+1). 00959_ Lgt. Armor Plating destroyed. 00960_ System corrupted: Lgt. Treads rejected. 00960_ The unstable cave ceiling collapses. 00963_ Lgt. Treads destroyed. 00964_ The unstable cave ceiling collapses. 00966_ Imp. Ion Engine destroyed. 00970_ The unstable cave ceiling collapses. Map ----- +----------------------------------------------------+ | | | | | | | | | | | | | ?????????????????????????????????????????????????? | | ?????????????????????????????????????????????????? | | ?????????????????????????????????????????????????? | | ????????????????????????####??####???????????????? | | ???????????????????????## #### ####????????????# | | ???????????????????????# ## ##???????##### | | ???????????????????????# ##??????# | | ????#################???# ####???# | | ????# #???## # ##### ## | | ????# #????# # #? | | ##### ###### # ## #? | | # #### ########? | | ##### ###### # #?###???????? | | # u #????# # #????????????? | | # ###### # = %##????????????? | | # #????????????? | | ##### #????????????? | | ????# #????????????? | | ????################ =# #????????????? | | ???????????????????# @ #####????????? | | ???????????????????### #????????? | | ?????????????????????# ##????????? | | ???????????????????? # # # ##?????????? | | ???????????????????############ g = #??????????? | | ?????????????????????????????? %rr$?????????? | | ?????????????????????????????# % ##????????? | | ?????????????????????????????# # ! ##?????????? | | ????????????????????????????? #?????????? | | ????????????????????????????? #?????????? | | ???????????????????????????? % ##?????????? | | ???????????????????????????? % #??????????? | | ???????????????????????????# #??????????? | | ???????????????????????????? % % ???????????? | | ?????????????????????????????? ?????????????? | | ??????????????????????????????# ?????????????? | | ???????????????????????????????? ?????????????? | | ?????????????????????????????????????????????????? | | ?????????????????????????????????????????????????? | | ?????????????????????????????????????????????????? | | ?????????????????????????????????????????????????? | | ?????????????????????????????????????????????????? | | ?????????????????????????????????????????????????? | | ?????????????????????????????????????????????????? | | ?????????????????????????????????????????????????? | +----------------------------------------------------+ Best States ------------- Heat Dissipation 25 Energy Generation 12 Energy Capacity 265 Matter Stores 300 Matter Capacity 300 Sight Range 16 Terrain Scan Range 16 Terrain Scan Density 10 Armor Coverage 150 Power Shielding 33 Evasion (%) 42 Recoil Reduction 2 Item Schematics ----------------- None Robot Schematics ------------------ None Fabricated ------------ Nothing Alien Tech Used ----------------- None Achievements -------------- None Challenges ------------ None Game ------ Seed TerrabombBlastNanovents Manual? 0 Play Time 00:17:06 Cumulative 33.5 hours Start 2021.10.23 @ 09:59:22 End 2021.10.23 @ 10:16:49 Sessions 1 Manual Loads 0 Difficulty Rogue Special Mode None Game No. 40 Rogue 40 Adventurer 0 Explorer 0 Win Type - Total 0 Types 0/0/0/0/0/0/0/0/0 Lore% 23 Gallery% 31 Achievement% 23 Wizard Run 0 Options --------- ASCII 0 Keyboard 0 Movement Mouse Keybinds 0 Fullscreen 1 Font 18/SmallcapsGlow Map View 76x50 Tactical HUD 1 Map Filters NONE Filters NONE Steam 1 RUN: 20fb761a-ef61-4fbd-9144-0232f8a36bdf